Cogmind - Beta 15 @@@ ROGUE MODE // 2025.06.28 @ 09:10:28 Player: f3-rnm Result: Destroyed by BI-G2D(R) with Subdweller Laser Performance ------------- Evolutions (0) 0 Regions Visited (2) 400 Robots Destroyed (39) 195 Value Destroyed (843) 843 Prototype IDs (0) 0 Alien Tech Used (0) 0 Bonus (-10) -10 TOTAL SCORE: 1428 Bonus ------- Friendly Fire -10 Cogmind --------- Core Integrity 0/250 Matter 164/300 Energy 100/100 System Corruption 4% Temperature Cool (6) Movement Rolling (140) Ox4 Location -10/Subcaves Parts ------- > --- POWER (1) -------- (None) > --- PROPULSION (2) --- Wheel > --- UTILITY (2) ------ High-capacity Storage Unit > --- WEAPON (2) ------- Light Assault Rifle > --- INVENTORY (20) --- Wheel Heat Sink Heat Sink Humpback High-capacity Matter Pod (0) Structural Scanner Sensor Array Signal Interpreter Core Shielding Light Armor Plating Scrap Shield Tractor Beam Small Laser Subdweller Laser Grenade Launcher Subdweller Shrapnel Launcher Subdweller Shrapnel Launcher Peak State ------------ > --- POWER ------------ Ion Engine > --- PROPULSION ------- Light Treads Wheel > --- UTILITY ---------- High-capacity Storage Unit Seismic Detector > --- WEAPON ----------- Subdweller Machine Gun Subdweller Shrapnel Launcher > --- INVENTORY -------- Wheel Wheel Heat Sink Heat Sink Humpback High-capacity Matter Pod Structural Scanner Sensor Array Signal Interpreter Core Shielding Light Armor Plating Scrap Shield Tractor Beam Small Laser Light Assault Rifle Light Cannon Grenade Launcher Subdweller Shrapnel Launcher [Rating: 11] Favorites ----------- Power Ion Engine Engine Ion Engine Propulsion Light Treads Treads Light Treads Wheel Wheel Utility High-capacity Storage Unit Device Seismic Detector Storage High-capacity Storage Unit Protection Core Shielding Weapon Assault Rifle Ballistic Gun Assault Rifle Ballistic Cannon Light Cannon Launcher Grenade Launcher Build | -11 -10 -10 ------- Run | Yrd Mat Sub Slots Evolved . | . . . Power . | . . . Propulsion . | . . . Utility . | . . . Weapon . | . . . Parts Attached 21 | 6 7 8 Power 2 | 1 . 1 Engine 2 | 1 . 1 Core . | . . . Reactor . | . . . Propulsion 5 | 2 . 3 Treads 3 | 2 . 1 Leg . | . . . Wheel 2 | . . 2 Hover . | . . . Flight . | . . . Utility 6 | 1 4 1 Device 1 | . . 1 Storage 4 | 1 3 . Processor . | . . . Hackware . | . . . Protection 1 | . 1 . Artifact . | . . . Weapon 8 | 2 3 3 Energy Gun . | . . . Energy Cannon . | . . . Ballistic Gun 5 | 2 1 2 Ballistic Cannon 1 | . 1 . Launcher 2 | . 1 1 Special Weapon . | . . . Impact Weapon . | . . . Slashing Weapon . | . . . Piercing Weapon . | . . . Special Melee Weapon . | . . . Unidentified Prototypes . | . . . Parts Lost 11 | . 1 10 Power 2 | . . 2 Propulsion 4 | . . 4 Utility 1 | . . 1 Weapon 4 | . 1 3 Highest Loss Streak 3 | . 1 3 To Critical Strikes . | . . . Average Backups 14 | 1 11 18 Power . | . 1 . Propulsion 2 | . 2 2 Utility 7 | . 5 9 Weapon 4 | . 3 5 Tool/Special . | . . . Unused Backups 15 | . . 15 Power . | . . . Propulsion 1 | . . 1 Utility 12 | . . 12 Weapon 2 | . . 2 Tool/Special . | . . . Average Slot Usage (%) 96 | . 94 97 Engine 13 | . 14 13 Treads 23 | . 28 18 Wheel 4 | . . 9 Device 1 | . . 2 Storage 14 | . 14 14 Protection 9 | . 8 11 Ballistic Gun 18 | . 23 13 Ballistic Cannon 7 | . 2 11 Launcher 1 | . 1 1 Peak Build Rating 11 | 6 9 11 Average Rating 8 | 4 7 9 On Entrance 5 | . 6 9 Naked Turns . | . . . Heaviest Build 59 | 14 59 58 Greatest Support 40 | 40 40 40 Greatest Overweight (x) 5 | . 1 5 Average Overweight (x) 1 | . . 3 Largest Inventory Capacity 20 | 8 20 20 Average Capacity 17 | 7 16 20 Most Carried 20 | 3 20 20 Average Carried 14 | 1 11 19 Final Capacity 20 | 8 20 20 Final Carried 20 | 3 20 19 Class Distribution -------------------- 100% | Mutant Dominant Class ---------------- Mutant | -10/Materials Mutant | -10/Subcaves Resources | -11 -10 -10 ----------- Run | Yrd Mat Sub Matter Collected 1267 | 250 416 601 Remotely . | . . . Salvage Created 763 | . 516 247 Parts 69 | . 48 21 Haulers Intercepted . | . . . Recyclers Shooed 1 | . 1 . Parts Field Recycled . | . . . Retrieved Matter . | . . . Parts Self-Destructed 3 | . . 3 Prevented . | . . . Kills | -11 -10 -10 ------- Run | Yrd Mat Sub Combat Hostiles Destroyed 30 | . 18 12 Guns 10 | . 5 5 Cannons 4 | . 1 3 AOE 16 | . 12 4 Classes Destroyed 7 | . 6 1 Worker 1 | . 1 . Builder 6 | . 6 . Tunneler 1 | . 1 . Recycler 1 | . 1 . Swarmer 12 | . 9 3 Grunt 9 | . 9 . Subdweller 9 | . . 9 Best Kill Streak 6 | . 6 3 Combat Bots Only 3 | . 3 3 Max Kills in Single Turn 2 | . 2 2 Gunslinging . | . . . Exploded 2 | . 2 2 Melee . | . . . Uniques/NPCs Destroyed . | . . . Combat | -11 -10 -10 -------- Run | Yrd Mat Sub Hostile Shots Fired 137 | . 68 69 Missed 42 | . 23 19 Hits 95 | . 45 50 Projectile 95 | . 45 50 AOE 1 | . . 1 Critical Strikes 2 | . 1 1 Damage Taken 1610 | . 557 1053 Core 262 | . 76 186 Absorbed by Shields . | . . . Redirected to Shielding 20 | . 9 11 Core Remaining (%) 100 | 100 . . Volleys Fired 129 | . 55 74 Largest 2 | . 2 2 Hottest 60 | . 50 60 Shots Fired 201 | . 94 107 Gun 116 | . 69 47 Cannon 64 | . 11 53 Launcher 21 | . 14 7 Special . | . . . Kinetic 185 | . 80 105 Thermal . | . . . Explosive 16 | . 14 2 Electromagnetic . | . . . Robot Hit Streak 11 | . 7 11 Robot Miss Streak 3 | . 3 3 Penetration Max . | . . . Secondary Targets 1 | . 1 . Max Gunslinging Chain 1 | . 1 . Shots Hit Robots 114 | . 57 57 Core Hits 67 | . 46 21 Critical Kills 1 | . . 1 Critical Parts Destroyed . | . . . Critical Strikes 1 | . . 1 Destroy 1 | . . 1 Melee Attacks . | . . . Impact . | . . . Slashing . | . . . Piercing . | . . . Sneak Attacks . | . . . Combat Hostiles . | . . . Follow-up Attacks . | . . . Damage Inflicted 2965 | . 1494 1471 Guns 930 | . 454 476 Cannons 565 | . 154 411 Explosions 1470 | . 886 584 Melee . | . . . Ramming . | . . . Kinetic 1933 | . 608 1325 Thermal . | . . . Explosive 1032 | . 886 146 Electromagnetic . | . . . Impact . | . . . Slashing . | . . . Piercing . | . . . Highest Corruption 4 | . 4 4 Average Corruption 3 | . 3 4 Corruption Purged . | . . . Corruption Blocked . | . . . Effects 39 | . 16 23 Message Errors 12 | . 7 5 Matter Fused 8 | . 1 7 Heat Flow Errors 2 | . 1 1 Energy Discharges 4 | . 2 2 Parts Fused 2 | . 2 . Data Loss (minor) 5 | . 2 3 Data Loss (major) 4 | . 1 3 Misfires 1 | . . 1 Alerts 1 | . . 1 Overload Shots . | . . . Overflow Damage 12 | . . 12 Projectiles . | . . . Explosions 12 | . . 12 Melee . | . . . Knockbacks 3 | . . 3 Impact . | . . . Kinetic 3 | . . 3 Secondary . | . . . Self-Inflicted Damage 70 | . 70 . Shots 4 | . 4 . Rammed . | . . . Targets Rammed . | . . . Kicked . | . . . Crushed . | . . . Highest Temperature 210 | . 210 69 Average Temperature 41 | . 41 49 Received Heat Transfer 309 | . 249 60 Siege Activations . | . . . Martial Activations . | . . . Shielding Activations . | . . . Robots Disrupted . | . . . Combat Hostiles . | . . . Robots Corrupted . | . . . Combat Hostiles . | . . . Parts Fried . | . . . Impact Corruptions . | . . . Robots Melted . | . . . Combat Hostiles . | . . . Parts Melted . | . . . Heat Transferred . | . . . Parts Sabotaged . | . . . Parts Stolen . | . . . Parts Stripped . | . . . Power Chain Reactions . | . . . Alert | -11 -10 -10 ------- Run | Yrd Mat Sub Maximum Alert Level . | . . . Low Security (%) 100 | 100 100 . Level 1 . | . . . Level 2 . | . . . Level 3 . | . . . Level 4 . | . . . Level 5 . | . . . High Security . | . . . Max Security . | . . . Peak Influence 151 | . 151 . Initial . | . . . Average 67 | . 73 . Influence Increases 603 | . 533 70 Destroy 0b10 Robot/C 420 | . 360 60 Destroy 0b10 Robot/NC 45 | . 45 . Destroy Leader 70 | . 60 10 Destroy Structure 68 | . 68 . Influence Decreases 603 | . 470 133 Entered New Map 31 | . . 31 Time Decay 562 | . 460 102 Lost Part 10 | . 10 . Squads Dispatched 2 | . 2 . Investigation 1 | . 1 . Extermination . | . . . Reinforcement 1 | . 1 . Assault . | . . . Garrison . | . . . Intercept . | . . . Searches Triggered . | . . . Construction Impeded . | . . . Haulers Reinforced . | . . . Active Scanning Responses . | . . . Cargo Convoy Interrupts . | . . . Stealth | -11 -10 -10 --------- Run | Yrd Mat Sub Distress Signals 1 | . 1 . Communications Jammed . | . . . Distress Signals . | . . . Times Spotted 39 | . 24 15 Peak Tracking Total 3 | . 3 3 Tactical Retreats . | . . . Traps | -11 -10 -10 ------- Run | Yrd Mat Sub Traps Triggered 3 | . 3 . Indirectly . | . . . Trap Hack Attempts . | . . . Triggered . | . . . Disarmed . | . . . Reprogrammed . | . . . Reused . | . . . Traps Extracted . | . . . Installed . | . . . Triggered . | . . . Machines | -11 -10 -10 ---------- Run | Yrd Mat Sub Machines Disabled . | . . . Max in Single Turn . | . . . Machines Repaired . | . . . Machines Dismantled . | . . . Machines Sabotaged . | . . . Overloaded Fab Kills . | . . . Hacking | -11 -10 -10 --------- Run | Yrd Mat Sub Machines Accessed 1 | . . 1 Terminals . | . . . Fabricators . | . . . Repair Stations . | . . . Recycling Units . | . . . Scanalyzers . | . . . Garrison Access . | . . . Total Hacks 5 | . . 5 Successful 5 | . . 5 Failed . | . . . Catastrophic . | . . . Database Lockouts . | . . . Manual . | . . . Terminals . | . . . Fabricators . | . . . Repair Stations . | . . . Recycling Units . | . . . Scanalyzers . | . . . Garrison Access . | . . . Terminal Hacks 5 | . . 5 Record 5 | . . 5 Fabricator Hacks . | . . . Repair Station Hacks . | . . . Recycling Unit Hacks . | . . . Scanalyzer . | . . . Garrison Access Hacks . | . . . Unauthorized Hacks . | . . . Terminals . | . . . Fabricators . | . . . Repair Stations . | . . . Recycling Units . | . . . Scanalyzers . | . . . Garrison Access . | . . . Data Cores Recovered . | . . . Used . | . . . Hacking Detections . | . . . Full Trace Events . | . . . Feedback Events . | . . . Feedback Blocked . | . . . Robot Schematics Acquired . | . . . Robots Built . | . . . Authchips . | . . . Time . | . . . Total Robot Build Rating . | . . . Part Schematics Acquired . | . . . Parts Built . | . . . Authchips . | . . . Time . | . . . Total Part Build Rating . | . . . Parts Repaired . | . . . Time . | . . . Parts Recycled . | . . . Recycled Matter . | . . . Retrieved Matter . | . . . Retrieved Components . | . . . Parts Scanalyzed . | . . . Part Schematics Acquired . | . . . Parts Damaged . | . . . Bothacking | -11 -10 -10 ------------ Run | Yrd Mat Sub Used RIF Installer . | . . . Robots Hacked . | . . . Non-combat . | . . . Combat . | . . . Robot Hacks Applied . | . . . Relay Couplers Released . | . . . Fabnet Peak Effective % . | . . . Robots Rewired . | . . . Allies Hacked . | . . . Hacks Repelled . | . . . Allies | -11 -10 -10 -------- Run | Yrd Mat Sub Total Allies . | . . . Largest Group . | . . . Highest-Rated Group . | . . . Highest-Rated Ally . | . . . Total Orders . | . . . Ally Attacks . | . . . Total Damage . | . . . Kills . | . . . Allies Corrupted . | . . . Allies Melted . | . . . Intel | -11 -10 -10 ------- Run | Yrd Mat Sub Active Infowar (turns) 229 | . . 229 Seismic 229 | . . 229 Robot Analysis Total . | . . . Derelict Logs Recovered 1 | . . 1 Drone Launches . | . . . Drone Recoveries . | . . . Exploration | -11 -10 -10 ------------- Run | Yrd Mat Sub Turns Passed 2416 | 97 1192 1127 Spaces Moved 1054 | 55 494 505 Core 2 | 2 . . Treads 731 | 53 494 184 Legs . | . . . Wheels 321 | . . 321 Hover . | . . . Flight . | . . . Fastest Speed 50 | 50 160 110 Average Speed 190 | 156 204 180 Slowest Speed 240 | 160 240 240 Overloaded Moves . | . . . Propulsion Burnouts . | . . . Robots Hopped . | . . . Potential Cave-ins . | . . . Cave-ins Triggered . | . . . Exploration Rate (%) 41 | 5 86 32 Regions Visited 2 Branch Regions 1 Pre-discovered Areas 2 | . . 2 Known Exits Taken . | . . . Unknown Exits Taken 2 | 1 1 . Scrap Searched 5 | . . 5 Spaces Dug . | . . . Terrain Destroyed 154 | . 94 60 Melee . | . . . Projectile . | . . . AOE 154 | . 94 60 Terrain Rammed . | . . . Walls Destroyed . | . . . Machines Disabled . | . . . Actions | -11 -10 -10 --------- Run | Yrd Mat Sub Total 1266 | 63 585 618 Wait 17 | . . 17 Move 1052 | 54 493 505 Hop . | . . . Pick Up 30 | 3 20 7 Fast Attach 7 | 6 1 . Attach 9 | . 3 6 Detach 1 | . 1 . Swap 14 | . 9 5 Drop 7 | . 3 4 Fire 129 | . 55 74 Melee . | . . . Ram . | . . . Kick . | . . . Crush . | . . . Escape Stasis . | . . . Rewire . | . . . Trap . | . . . Miscellaneous . | . . . Route ------- -11/Scrapyard -10/Materials (discovered 5 exits: [*Mat x3] / [*Min] / *Sub) -10/Subcaves History --------- Turn | Location | Event 9 | -11/Scrapyard | Discovered new exit (range 15) 98 | -11/Scrapyard | Entered Materials 167 | -10/Materials | Discovered new exit (range 13) 307 | -10/Materials | Build established: Mutant 346 | -10/Materials | Discovered new exit (range 16) 543 | -10/Materials | Discovered new exit (range 15) 978 | -10/Materials | Discovered new exit (range 4) 1225 | -10/Materials | Discovered new exit (range 12) 1290 | -10/Materials | Entered Subcaves 1291 | -10/Subcaves | Approached by a straggling Scientist 1306 | -10/Subcaves | Shifting Twisted Machinery released Sub. Shrapnel Launcher 1311 | -10/Subcaves | Shifting Twisted Machinery released Sub. Shrapnel Launcher 1312 | -10/Subcaves | Learned Materials trap positions 1514 | -10/Subcaves | Visited Clippyterm 1521 | -10/Subcaves | Learned location of Extension (-5) 1521 | -10/Subcaves | Learned Factory emergency access door positions 1752 | -10/Subcaves | Disturbed a concealed Subdweller 1807 | -10/Subcaves | Lost 3 parts (2n1w) 2018 | -10/Subcaves | Core integrity fell below 50% 2166 | -10/Subcaves | A swath of the cavern ceiling suddenly collapsed 2170 | -10/Subcaves | A swath of the cavern ceiling suddenly collapsed 2283 | -10/Subcaves | Learned location of Zion (-7) 2283 | -10/Subcaves | Met a Zionite searching for "candidates" 2408 | -10/Subcaves | Ambushed by Subdweller buried in earth 2409 | -10/Subcaves | Core integrity fell below 20% 2417 | -10/Subcaves | Destroyed by BI-G2D(R) with Subdweller Laser Last Messages --------------- 02325_ Acquired 13 matter. 02337_ Acquired 3 matter. 02342_ Acquired 5 matter. 02351_ Lgt. Cannon destroyed. PG-TSU(c): "I think it's somewhere southwest of here" 02365_ Dropped Hcp. Matter Pod. 02366_ Extracted 117 matter. 02366_ Acquired Hcp. Matter Pod. 02374_ Ion Engine destroyed. 02376_ W1-4HG(R) destroyed. 02392_ UK-BTI(R) affixes Scrap Shield Fragment to Scrap Shield. 02393_ UK-BTI(R) destroyed. 02399_ EM-6Q7(R) destroyed. 02402_ Acquired 35 matter. 02404_ Acquired Sub. Laser. 02408_ Wheel destroyed. 02408_ PG-TSU(c) destroyed. 02409_ BI-G2D(R): "ARGHSUB!" 02409_ Sub. Machine Gun destroyed. 02415_ Seismic Detector destroyed. Map ----- +----------------------------------------------------+ | ?????????????????????????????????????????????????? | | ?????????????????????????????????????????????????? | | ?????????????????????????????????????????????????? | | ?????????????????????????????????????????????????? | | ?????????????????????????????????????????????????? | | ?????????????????????????????????????????????????? | | ?????????????????????????????????????????????????? | | ?????????????????????????????????????????????????? | | ?????????????????????????????????????????????????? | | ?????????????????????????????????#####?????????#?? | | ????????????????????????????????## ????????? #?? | | ????????????????????????????????# ????????? ""? | | ????????????????????????????????# ????????? "# | | ?????????????????????#######????# ###??????? "# | | ???????????????????### # ###??# #???#### "# | | ???????????????????# #??# #???# "" | | ???????????????????# ##### #???# "" | | ???????????????????# ! ;; # z#??## | | ??????????????????## & ;;;; #???# | | ??????????????????# & ##### # | | ??????????????????## % ## #? | | ???????????????????# ; ; #?? | | ???????????????????# ;; #?? | | ???????????????????# #### ## #?? | | ???????????????????##; &;; #??# #### #?? | | ?????????????????????#; @*; #??# ####??### ##?? | | ?????????????????????# ;;RR;##??###???????## ##?# | | ?????????????????????##;;;%&;#?????????????# ## | | ?????????????????""???## #R&;#???????##???## ## | | ?????????????????"" ??###!;##???????# ??# | | ?????????????????#"""""## !# #"# #????# #### "# # | | ?????????????????#" """ ""#?????# "#"""#""# | | ?????????????????#""#" ##" #???????#""" """# | | ????????????????????### % #??? #??????##"" #### | | ??????????????????????## "????????????#"""##?? | | ???????????????????????# "" ??????????##"# ##? | | ??????????????????????? ## " # ??????????### "#? | | ???????????????????????## #?# "#???????????##""##? | | ????????????????????????# #??# #???????????##" ### | | ????????????????????????# ??? ???????????##" #"# | | ???????????????????????? ???? ??????????#"# "" | | ????????????????????????###???? ?????????### "## | | ????????????????????????????????###?????????###### | | ?????????????????????????????????????????????#"# # | | ?????????????????????????????????????????# """### | | ?????????????????????????????????????????# "## ## | | ?????????????????????????????????????????#" #?? | | ????????????????????????????????????????## #??? | | ????????????????????????????????????????# #???? | | ????????????????????????????????????????# ????? | +----------------------------------------------------+ Best States ------------- Heat Dissipation 25 Energy Generation 10 Energy Capacity 250 Matter Stores 300 Matter Capacity 300 Sight Range 16 Terrain Scan Density 10 Core Shielding 20 Evasion (%) 40 Recoil Reduction 2 Item Schematics ----------------- None Robot Schematics ------------------ None Fabricated ------------ Nothing Repaired ---------- Nothing Alien Tech Used ----------------- None Achievements -------------- None Challenges ------------ None Game ------ Seed WarlordHardenedSink Manual? 0 Play Time 00:12:28 Cumulative 329.3 hours Start 2025.06.28 @ 08:59:33 End 2025.06.28 @ 09:10:28 Sessions 1 Manual Loads 0 Difficulty Rogue Special Mode None Game No. 317 Rogue 281 Adventurer 36 Explorer 0 Win Type - Total 11 Types 4/0/7/0/0/0/0/0/0/0 Lore% 69 Gallery% 81 Achievement% 74 Wizard Run 0 Options --------- Layout 0 ASCII 0 Keyboard 0 Movement Mouse Keybinds 0 Fullscreen 1 Font 18/SmallcapsGlow Map View 76x50 Zoom Use 0% Tactical HUD 1 Map Filters NONE Filters NONE Steam 1 RUN: c13000f2-4348-4638-8b06-9e0662fd1dea